fUST/lending_fUST_20250618
["ID","MTS","AMOUNT","RATE_DAILY","PERIOD"]
[366389284,1750228242283,-272.26062391,0.00023342,6]
[366389286,1750228242292,-1329.37,0.00023342,6]
[366389288,1750228242301,-473.57,0.00023342,6]
[366389290,1750228242311,-465.15,0.00023342,6]
[366389292,1750228242321,-677.0,0.00023404,2]
[366389294,1750228242330,-460.0,0.00023452,6]
[366389296,1750228242340,-460.0,0.00023452,6]
[366389298,1750228242349,-460.0,0.00023452,6]
[366389300,1750228242359,-1329.37,0.00023452,6]
[366389302,1750228242368,-473.57,0.00023452,6]
[366389304,1750228242378,-465.15,0.00023452,6]
[366389306,1750228242388,-373.33250679,0.00023486,9]
[366389308,1750228242397,-677.0,0.00023489,2]
[366389310,1750228242407,-500.0,0.00023521,2]
[366389312,1750228242416,-500.0,0.00023521,2]
[366389314,1750228242426,-1000.0,0.00023521,2]
[366389316,1750228242435,-500.0,0.00023521,2]
[366389318,1750228242444,-1200.0,0.00023521,2]
[366389320,1750228242453,-503.18634917,0.00023521,2]
[366389322,1750228242463,-1000.0,0.00023521,2]
[366389324,1750228242472,-193.7780967,0.00023534,2]
[366389326,1750228242481,-158.9908236,0.00023534,2]
[366389328,1750228242491,-306.0,0.00023534,2]
[366389330,1750228242500,-574.2153043,0.00023534,2]
[366389332,1750228242509,-153.0,0.00023534,2]
[366389334,1750228242520,-158.9908236,0.00023534,2]
[366389336,1750228242529,-177.1504183,0.00023534,2]
[366389338,1750228242538,-574.2153043,0.00023534,2]
[366389340,1750228242547,-177.1504183,0.00023534,2]
[366389342,1750228242557,-574.2153043,0.00023534,2]
[366389344,1750228242566,-158.9908236,0.00023534,2]
[366389346,1750228242576,-590.7819618,0.00023534,2]
[366389348,1750228242585,-460.0,0.00023561,6]
[366389350,1750228242594,-460.0,0.00023561,6]
[366389352,1750228242603,-460.0,0.00023561,6]
[366389354,1750228242612,-1329.37,0.00023561,6]
[366389356,1750228242622,-473.57,0.00023561,6]
[366389358,1750228242631,-465.15,0.00023561,6]
[366389360,1750228242640,-1488.05,0.00023577,2]
[366389362,1750228242649,-677.0,0.0002359,2]
[366389364,1750228242659,-373.33250679,0.00023659,9]
[366389366,1750228242668,-460.0,0.00023671,6]
[366389368,1750228242677,-460.0,0.00023671,6]
[366389370,1750228242686,-460.0,0.00023671,6]
[366389372,1750228242695,-1329.37,0.00023671,6]
[366389374,1750228242705,-473.57,0.00023671,6]
[366389376,1750228242714,-465.15,0.00023671,6]
[366389378,1750228242724,-1500.0,0.000237,15]
[366389380,1750228242733,-420.0,0.0002371,2]
[366389382,1750228242742,-5000.0,0.00023728,2]
[366389384,1750228242751,-501.34872277,0.00023773,2]
[366389386,1750228242760,-500.0,0.00023773,2]
[366389388,1750228242769,-500.0,0.00023773,2]
[366389390,1750228242778,-500.0,0.00023773,2]
[366389392,1750228242787,-158.50228441,0.00023773,2]
[366389394,1750228242796,-500.0,0.00023773,2]
[366389396,1750228242806,-500.0,0.00023773,2]
[366389398,1750228242815,-500.91986045,0.00023773,2]
[366389400,1750228242825,-500.0,0.00023773,2]
[366389402,1750228242834,-150.0,0.00023773,2]
[366389404,1750228242844,-1956.85480235,0.00023779,2]
[366389406,1750228242853,-460.0,0.00023779,6]
[366389408,1750228242863,-460.84,0.00023779,6]
[366389410,1750228242872,-460.0,0.00023779,6]
[366389412,1750228242881,-460.0,0.00023779,6]
[366389414,1750228242891,-451.97256478,0.00023779,6]
[366389416,1750228242900,-184549.94964981,0.0002378,15]
[366389417,1750228242909,-299.565967,0.0002378,7]
[366389418,1750228242918,-151.0,0.0002378,7]
[366389419,1750228242927,-151.0,0.0002378,7]
[366389420,1750228242940,-460.0,0.0002378,6]
[366389421,1750228242949,-151.0,0.0002378,7]
[366389422,1750228242958,-151.0,0.0002378,7]
[366389423,1750228242967,-524.40026371,0.0002378,6]
[366389424,1750228242976,-299.712611,0.0002378,7]
[366389425,1750228242986,-151.0,0.0002378,7]
[366389426,1750228242995,-151.0,0.0002378,7]
[366389427,1750228243003,-151.0,0.0002378,7]
[366389428,1750228243014,-708.796501,0.0002378,2]
[366389429,1750228243023,-151.0,0.0002378,7]
[366389430,1750228243031,-708.796501,0.0002378,2]
[366389431,1750228243040,-151.0,0.0002378,7]
[366389432,1750228243050,-536.31808169,0.0002378,6]
[366389433,1750228243059,-151.0,0.0002378,7]
[366389435,1750228243068,-151.0,0.0002378,7]
[366389436,1750228243077,-1329.37,0.0002378,6]
[366389437,1750228243087,-473.57,0.0002378,6]
[366389439,1750228243096,-465.15,0.0002378,6]
[366389441,1750228243105,-322.80377509,0.00023799,2]
[366389444,1750228243114,-9301.49555854,0.000238,2]
[366389447,1750228243123,-9860.88235981,0.000238,2]
[366389449,1750228243132,-122632.96092,0.000238,2]
[366389451,1750228243142,-294587.58962699,0.000238,3]
[366389453,1750228243151,-48206.49637159,0.000238,5]
[366389456,1750228243160,-686.86,0.000238,7]
[366389459,1750228243169,-2113.53,0.000238,7]
[366389462,1750228243177,-41988.20083964,0.000238,7]
[366389479,1750228243315,-593.19,0.00021917,6]
[366389481,1750228243325,-12.20636055,0.00021917,6]
[366389520,1750228243683,-447.79363945,0.00021917,6]
[366389522,1750228243692,-81.10738437,0.00021917,6]
[366389602,1750228244400,-282.2729348,0.00021917,6]
[366389789,1750228246564,-5000.0,0.00021698,2]
[366389791,1750228246574,-49.59139264,0.00021917,6]
[366389793,1750228246584,-430.0,0.00021917,6]
[366389795,1750228246594,-460.0,0.00021917,6]
[366389797,1750228246603,-593.19,0.00022027,6]
[366389799,1750228246612,-460.0,0.00022027,6]
[366389801,1750228246622,-460.0,0.00022027,6]
[366389803,1750228246631,-593.19,0.00022136,6]
[366389805,1750228246642,-460.0,0.00022136,6]
[366389807,1750228246651,-460.0,0.00022136,6]
[366389809,1750228246661,-593.19,0.00022246,6]
[366389811,1750228246670,-549.42,0.00022246,6]
[366389813,1750228246680,-460.0,0.00022246,6]
[366389824,1750228246773,-593.19,0.00022356,6]
[366389826,1750228246783,-155.03067527,0.00022356,6]
[366392880,1750228447050,-500.0,0.00019574,2]
[366392881,1750228622864,-154.02278158,0.00019574,2]
[366392882,1750228635625,-151.51287699,0.00019378,2]
[366392883,1750228658841,245.0,0.00025157,120]
[366392884,1750228705719,-345.97721842,0.00019378,2]
[366392885,1750228750436,-4502.50990459,0.00019378,2]
[366392886,1750228750459,-326.49009541,0.00019758,2]
[366392887,1750228765184,-217.19825329,0.0001956,2]
[366392888,1750228787404,-246.18201759,0.0001956,2]
[366392889,1750228825023,-4536.61972912,0.0001956,2]
[366392890,1750228825047,-424.38027088,0.00019757,2]
[366392891,1750228838581,-270.17652984,0.00019559,2]
[366392892,1750228861855,168.27817,0.00013699,2]
[366392893,1750228862552,-151.52820238,0.00019559,2]
[366392894,1750228906896,-3382.0,0.00019559,2]
[366392895,1750228909075,-263.72800973,0.00019559,2]
[366392896,1750229027345,-155.66251111,0.00019363,2]
[366392897,1750229162883,-150.0,0.000189,2]
[366392898,1750229201769,400.0,0.00024657,120]
[366392899,1750229217729,-215.0,0.00019169,2]
[366392902,1750229406664,-321.76597768,0.00018977,2]
[366392923,1750229431866,-4678.23402232,0.00018977,2]
[366392925,1750229431876,-456.77580341,0.0001975,2]
[366392934,1750229431980,-47.04419659,0.0001975,2]
[366392935,1750229431989,-1007.64,0.00021545,2]
[366392936,1750229432151,-402.45191863,0.00021815,2]
[366392937,1750229432161,-272.09578789,0.000219,6]
[366392938,1750229432170,-300.0,0.00021912,2]
[366392939,1750229432179,-40915.81858721,0.00021913,2]
[366392940,1750229432188,-300.0,0.00021913,2]
[366392941,1750229432197,-202.927,0.00021915,2]
[366392942,1750229432206,-634.90054191,0.00021916,2]
[366392943,1750229432215,-500.0,0.00021916,2]
[366392944,1750229432224,-515.03133185,0.00021916,2]
[366392946,1750229432233,-500.0,0.00021916,2]
[366392948,1750229432242,-500.0,0.00021916,2]
[366392950,1750229432251,-500.0,0.00021916,2]
[366392952,1750229432260,-160.0,0.00021916,2]
[366392954,1750229432271,-390.26681816,0.00021917,6]
[366392955,1750229432280,-497.13869693,0.00021917,6]
[366392957,1750229432289,-460.0,0.00021917,6]
[366392959,1750229432299,-430.0,0.00021917,6]
[366392961,1750229432308,-430.00000001,0.00021917,6]
[366392962,1750229432318,-316.17725696,0.00021917,6]
[366392963,1750229432327,-430.0,0.00021917,6]
[366392964,1750229432337,-460.0,0.00021917,6]
[366392965,1750229432346,-460.0,0.00021917,6]
[366392966,1750229432355,-460.0,0.00021917,6]
[366392967,1750229432364,-469.59115497,0.00021917,6]
[366392968,1750229432374,-347.12698007,0.00021917,6]
[366392969,1750229432383,-360.95113158,0.00021917,6]
[366392970,1750229432392,-460.0,0.00021917,6]
[366392971,1750229432402,-444.40049639,0.00021917,6]
[366392972,1750229432412,-430.0,0.00021917,6]
[366392973,1750229432421,-460.0,0.00021917,6]
[366392974,1750229432431,-403.74443085,0.00021917,6]
[366392975,1750229432441,-409.49654014,0.00021917,6]
[366392976,1750229432450,-432.09098518,0.00021917,6]
[366392977,1750229432459,-430.0,0.00021917,6]
[366392978,1750229432469,-334.01460011,0.00021917,6]
[366392979,1750229432478,-460.0,0.00021917,6]
[366392980,1750229432487,-430.0,0.00021917,6]
[366392981,1750229432497,-430.0,0.00021917,6]
[366392982,1750229432507,-430.0,0.00021917,6]
[366392983,1750229432521,-324.51326619,0.00021917,6]
[366392984,1750229432531,-409.54682402,0.00021917,6]
[366392985,1750229432540,-430.0,0.00021917,6]
[366392986,1750229432550,-503.47987014,0.00021917,6]
[366392987,1750229432560,-411.56354347,0.00021917,6]
[366392988,1750229432569,-460.0,0.00021917,6]
[366392989,1750229432579,-207.2516467,0.00021917,6]
[366392990,1750229432588,-453.69908247,0.00021917,6]
[366392991,1750229432597,-335.40520717,0.00021917,6]
[366392992,1750229432607,-345.30734373,0.00021917,6]
[366392993,1750229432617,-366.80805089,0.00021917,6]
[366392994,1750229432627,-430.0,0.00021917,6]
[366392995,1750229432641,-460.0,0.00021917,6]
[366392996,1750229432650,-356.66816649,0.00021917,6]
[366392997,1750229432662,-414.12149653,0.00021917,6]
[366392998,1750229432672,-460.0,0.00021917,6]
[366392999,1750229432682,-358.4586743,0.00021917,6]
[366393000,1750229432692,-452.52206794,0.00021917,6]
[366393001,1750229432701,-452.14384119,0.00021917,6]
[366393002,1750229432710,-430.0,0.00021917,6]
[366393003,1750229432720,-430.0,0.00021917,6]
[366393004,1750229432729,-330.70590416,0.00021917,6]
[366393005,1750229432739,-460.0,0.00021917,6]
[366393006,1750229432749,-461.81919041,0.00021917,6]
[366393007,1750229432759,-408.90497436,0.00021917,6]
[366393008,1750229432768,-499.25692587,0.00021917,6]
[366393009,1750229432778,-435.32756588,0.00021917,6]
[366393010,1750229432788,-421.48404406,0.00021917,6]
[366393011,1750229432798,-430.0,0.00021917,6]
[366393012,1750229432807,-460.0,0.00021917,6]
[366393013,1750229432816,-460.0,0.00021917,6]
[366393014,1750229432826,-417.40424984,0.00021917,6]
[366393015,1750229432836,-460.0,0.00021917,6]
[366393016,1750229432846,-460.0,0.00021917,6]
[366393017,1750229432856,-460.0,0.00021917,6]
[366393018,1750229432866,-460.0,0.00021917,6]
[366393019,1750229432875,-374.90971732,0.00021917,6]
[366393020,1750229432885,-460.0,0.00021917,6]
[366393021,1750229432894,-460.0,0.00021917,6]
[366393022,1750229432904,-460.0,0.00021917,6]
[366393023,1750229432914,-325.20686427,0.00021917,6]
[366393024,1750229432924,-460.0,0.00021917,6]
[366393025,1750229432933,-200.18887765,0.00021917,6]
[366393026,1750229432943,-460.0,0.00021917,6]
[366393027,1750229432953,-460.0,0.00021917,6]
[366393028,1750229432963,-460.0,0.00021917,6]
[366393029,1750229432972,-391.01023349,0.00021917,6]
[366393030,1750229432982,-460.0,0.00021917,6]
[366393031,1750229432992,-460.0,0.00021917,6]
[366393032,1750229433001,-460.0,0.00021917,6]
[366393033,1750229433011,-460.0,0.00021917,6]
[366393034,1750229433021,-422.48635995,0.00021917,6]
[366393035,1750229433030,-460.0,0.00021917,6]
[366393036,1750229433040,-405.00323565,0.00021917,6]
[366393037,1750229433050,-410.97877799,0.00021917,6]
[366393038,1750229433061,-460.0,0.00021917,6]
[366393039,1750229433071,-479.60106554,0.00021917,6]
[366393040,1750229433080,-449.63501287,0.00021917,6]
[366393041,1750229433092,-460.0,0.00021917,6]
[366393042,1750229433102,-430.0,0.00021917,6]
[366393043,1750229433112,-460.0,0.00021917,6]
[366393044,1750229433124,-460.0,0.00021917,6]
[366393045,1750229433138,-430.0,0.00021917,6]
[366393046,1750229433147,-460.0,0.00021917,6]
[366393047,1750229433157,-460.0,0.00021917,6]
[366393048,1750229433167,-430.0,0.00021917,6]
[366393049,1750229433177,-460.0,0.00021917,6]
[366393050,1750229433188,-312.88741579,0.00021917,6]
[366393051,1750229433198,-460.0,0.00021917,6]
[366393052,1750229433208,-533.43,0.00021917,6]
[366393053,1750229433218,-412.15048422,0.00021917,6]
[366393054,1750229433228,-537.84059936,0.00021917,6]
[366393055,1750229433238,-347.90827877,0.00021917,6]
[366393056,1750229433247,-460.0,0.00021917,6]
[366393057,1750229433257,-460.0,0.00021917,6]
[366393058,1750229433271,-460.0,0.00021917,6]
[366393059,1750229433284,-445.78870202,0.00021917,6]
[366393060,1750229433299,-460.0,0.00021917,6]
[366393061,1750229433313,-500.0,0.00021917,6]
[366393062,1750229433327,-460.0,0.00021917,6]
[366393063,1750229433340,-460.0,0.00021917,6]
[366393064,1750229433351,-460.0,0.00021917,6]
[366393065,1750229433365,-460.0,0.00021917,6]
[366393066,1750229433378,-460.0,0.00021917,6]
[366393067,1750229433391,-460.0,0.00021917,6]
[366393068,1750229433403,-460.0,0.00021917,6]
[366393069,1750229433416,-447.17898123,0.00021917,6]
[366393070,1750229433428,-460.0,0.00021917,6]
[366393071,1750229433441,-460.0,0.00021917,6]
[366393072,1750229433453,-460.0,0.00021917,6]
[366393073,1750229433466,-547.35168835,0.00021917,6]
[366393074,1750229433480,-407.36378751,0.00021917,6]
[366393075,1750229433492,-273.35407438,0.00021917,6]
[366393076,1750229433504,-460.0,0.00021917,6]
[366393077,1750229433519,-460.0,0.00021917,6]
[366393078,1750229433533,-441.10716841,0.00021917,6]
[366393079,1750229433545,-460.0,0.00021917,6]
[366393080,1750229433559,-460.0,0.00021917,6]
[366393081,1750229433572,-460.0,0.00021917,6]
[366393082,1750229433586,-460.0,0.00021917,6]
[366393083,1750229433599,-460.0,0.00021917,6]
[366393084,1750229433612,-460.0,0.00021917,6]
[366393085,1750229433623,-460.0,0.00021917,6]
[366393086,1750229433635,-460.0,0.00021917,6]
[366393087,1750229433647,-460.0,0.00021917,6]
[366393088,1750229433658,-460.0,0.00021917,6]
[366393089,1750229433670,-460.0,0.00021917,6]
[366393090,1750229433682,-460.0,0.00021917,6]
[366393091,1750229433696,-460.0,0.00021917,6]
[366393092,1750229433711,-453.88191199,0.00021917,6]
[366393093,1750229433726,-460.0,0.00021917,6]
[366393094,1750229433740,-433.46974533,0.00021917,6]
[366393095,1750229433752,-460.0,0.00021917,6]
[366393096,1750229433765,-348.60214094,0.00021917,6]
[366393097,1750229433779,-394.64074395,0.00021917,6]
[366393098,1750229433790,-460.0,0.00021917,6]
[366393099,1750229433800,-460.0,0.00021917,6]
[366393100,1750229433811,-460.0,0.00021917,6]
[366393101,1750229433822,-411.91153829,0.00021917,6]
[366393102,1750229433835,-460.0,0.00021917,6]
[366393103,1750229433848,-460.0,0.00021917,6]
[366393104,1750229433862,-460.0,0.00021917,6]
[366393105,1750229433875,-460.0,0.00021917,6]
[366393106,1750229433887,-460.0,0.00021917,6]
[366393107,1750229433897,-463.73076138,0.00021917,6]
[366393108,1750229433909,-460.0,0.00021917,6]
[366393109,1750229433921,-460.0,0.00021917,6]
[366393110,1750229433932,-460.0,0.00021917,6]
[366393111,1750229433945,-460.0,0.00021917,6]
[366393112,1750229433958,-460.0,0.00021917,6]
[366393113,1750229433969,-460.0,0.00021917,6]
[366393114,1750229433980,-460.0,0.00021917,6]
[366393115,1750229433991,-460.0,0.00021917,6]
[366393116,1750229434001,-460.0,0.00021917,6]
[366393117,1750229434013,-460.0,0.00021917,6]
[366393118,1750229434023,-434.5818158,0.00021917,6]
[366393119,1750229434034,-445.3739886,0.00021917,6]
[366393120,1750229434045,-435.36704693,0.00021917,6]
[366393121,1750229434057,-560.99636826,0.00021917,6]
[366393122,1750229434068,-460.0,0.00021917,6]
[366393123,1750229434079,-460.0,0.00021917,6]
[366393124,1750229434091,-432.51088146,0.00021917,6]
[366393125,1750229434104,-460.0,0.00021917,6]
[366393126,1750229434115,-308.53450458,0.00021917,6]
[366393127,1750229434127,-460.0,0.00021917,6]
[366393128,1750229434137,-460.0,0.00021917,6]
[366393129,1750229434149,-411.27567292,0.00021917,6]
[366393130,1750229434160,-460.0,0.00021917,6]
[366393131,1750229434172,-460.0,0.00021917,6]
[366393132,1750229434183,-460.0,0.00021917,6]
[366393133,1750229434194,-460.0,0.00021917,6]
[366393134,1750229434205,-460.0,0.00021917,6]
[366393135,1750229434216,-361.44146629,0.00021917,6]
[366393136,1750229434227,-460.0,0.00021917,6]
[366393137,1750229434238,-428.88437189,0.00021917,6]
[366393138,1750229434250,-460.0,0.00021917,6]
[366393139,1750229434261,-460.0,0.00021917,6]
[366393140,1750229434272,-460.0,0.00021917,6]
[366393141,1750229434283,-460.0,0.00021917,6]
[366393142,1750229434294,-421.7421531,0.00021917,6]
[366393143,1750229434306,-460.0,0.00021917,6]
[366393144,1750229434316,-460.0,0.00021917,6]
[366393145,1750229434328,-460.0,0.00021917,6]
[366393146,1750229434339,-460.0,0.00021917,6]
[366393147,1750229434351,-415.67842174,0.00021917,6]
[366393148,1750229434362,-423.00717465,0.00021917,6]
[366393149,1750229434374,-414.23756054,0.00021917,6]
[366393150,1750229434385,-460.0,0.00021917,6]
[366393151,1750229434397,-415.06451346,0.00021917,6]
[366393152,1750229434408,-460.0,0.00021917,6]
[366393153,1750229434420,-460.0,0.00021917,6]
[366393154,1750229434431,-464.82525638,0.00021917,6]
[366393155,1750229434443,-460.0,0.00021917,6]
[366393156,1750229434454,-460.0,0.00021917,6]
[366393157,1750229434465,-460.0,0.00021917,6]
[366393158,1750229434477,-460.0,0.00021917,6]
[366393159,1750229434488,-460.0,0.00021917,6]
[366393160,1750229434500,-460.0,0.00021917,6]
[366393161,1750229434513,-460.0,0.00021917,6]
[366393162,1750229434526,-460.0,0.00021917,6]
[366393163,1750229434538,-460.0,0.00021917,6]
[366393164,1750229434549,-460.0,0.00021917,6]
[366393165,1750229434560,-460.0,0.00021917,6]
[366393166,1750229434572,-412.67648568,0.00021917,6]
[366393167,1750229434583,-425.55803299,0.00021917,6]
[366393168,1750229434595,-460.0,0.00021917,6]
[366393169,1750229434606,-176.44515258,0.00021917,6]
[366393170,1750229434617,-460.0,0.00021917,6]
[366393171,1750229434629,-460.0,0.00021917,6]
[366393172,1750229434778,-460.0,0.00021917,6]
[366393173,1750229434790,-460.0,0.00021917,6]
[366393174,1750229434800,-460.0,0.00021917,6]
[366393175,1750229434811,-500.0,0.00021917,6]
[366393176,1750229434821,-608.96217247,0.00021917,6]
[366393177,1750229434831,-460.0,0.00021917,6]
[366393178,1750229434842,-460.0,0.00021917,6]
[366393179,1750229434852,-400.0,0.00021917,6]
[366393180,1750229434862,-336.8998207,0.00021917,6]
[366393181,1750229434872,-460.0,0.00021917,6]
[366393182,1750229434887,-500.0,0.00021917,6]
[366393183,1750229434897,-460.0,0.00021917,6]
[366393184,1750229434907,-460.0,0.00021917,6]
[366393185,1750229434917,-456.18302326,0.00021917,6]
[366393186,1750229434926,-445.42517723,0.00021917,6]
[366393187,1750229434936,-461.81337477,0.00021917,6]
[366393188,1750229434946,-425.63926587,0.00021917,6]
[366393189,1750229434957,-460.0,0.00021917,6]
[366393190,1750229434968,-460.0,0.00021917,6]
[366393191,1750229434977,-460.0,0.00021917,6]
[366393192,1750229434987,-460.0,0.00021917,6]
[366393193,1750229434997,-450.86177483,0.00021917,6]
[366393194,1750229435006,-346.1069028,0.00021917,6]
[366393195,1750229435015,-460.0,0.00021917,6]
[366393196,1750229435024,-460.0,0.00021917,6]
[366393197,1750229435034,-433.50564133,0.00021917,6]
[366393198,1750229435043,-421.72134209,0.00021917,6]
[366393199,1750229435053,-460.0,0.00021917,6]
[366393200,1750229435062,-571.08174004,0.00021917,6]
[366393201,1750229435072,-460.0,0.00021917,6]
[366393202,1750229435082,-430.0,0.00021917,6]
[366393203,1750229435092,-496.96284955,0.00021917,6]
[366393204,1750229435101,-433.55950465,0.00021917,6]
[366393205,1750229435111,-431.6371388,0.00021917,6]
[366393206,1750229435120,-550.13554065,0.00021917,6]
[366393207,1750229435130,-460.0,0.00021917,6]
[366393208,1750229435140,-460.0,0.00021917,6]
[366393209,1750229435150,-247.90608245,0.00021917,6]
[366393210,1750229435159,-460.0,0.00021917,6]
[366393211,1750229435168,-413.46089698,0.00021917,6]
[366393212,1750229435178,-460.0,0.00021917,6]
[366393213,1750229435188,-460.0,0.00021917,6]
[366393214,1750229435198,-460.0,0.00021917,6]
[366393215,1750229435207,-460.0,0.00021917,6]
[366393216,1750229435216,-460.0,0.00021917,6]
[366393217,1750229435226,-413.26370949,0.00021917,6]
[366393218,1750229435235,-500.0,0.00021917,6]
[366393219,1750229435244,-500.0,0.00021917,6]
[366393220,1750229435254,-453.44643299,0.00021917,6]
[366393221,1750229435264,-460.0,0.00021917,6]
[366393222,1750229435273,-500.0,0.00021917,6]
[366393223,1750229435282,-460.0,0.00021917,6]
[366393224,1750229435292,-500.0,0.00021917,6]
[366393225,1750229435301,-500.0,0.00021917,6]
[366393226,1750229435311,-460.0,0.00021917,6]
[366393227,1750229435321,-500.0,0.00021917,6]
[366393228,1750229435330,-500.0,0.00021917,6]
[366393229,1750229435340,-500.0,0.00021917,6]
[366393230,1750229435349,-500.0,0.00021917,6]
[366393231,1750229435359,-460.0,0.00021917,6]
[366393232,1750229435370,-460.0,0.00021917,6]
[366393233,1750229435380,-386.57169084,0.00021917,6]
[366393234,1750229435390,-448.00072516,0.00021917,6]
[366393235,1750229435400,-448.2435217,0.00021917,6]
[366393236,1750229435410,-434.96759177,0.00021917,6]
[366393237,1750229435419,-460.0,0.00021917,6]
[366393238,1750229435429,-460.0,0.00021917,6]
[366393239,1750229435439,-460.0,0.00021917,6]
[366393240,1750229435448,-460.0,0.00021917,6]
[366393241,1750229435458,-460.0,0.00021917,6]
[366393242,1750229435467,-460.0,0.00021917,6]
[366393243,1750229435477,-440.0,0.00021917,6]
[366393244,1750229435486,-430.0,0.00021917,6]
[366393245,1750229435495,-416.64804964,0.00021917,6]
[366393246,1750229435504,-440.0,0.00021917,6]
[366393247,1750229435517,-467.53244439,0.00021917,6]
[366393248,1750229435526,-430.0,0.00021917,6]
[366393249,1750229435535,-517.38,0.00021917,6]
[366393250,1750229435544,-458.78911488,0.00021917,6]
[366393251,1750229435555,-460.0,0.00021917,6]
[366393252,1750229435564,-460.0,0.00021917,6]
[366393253,1750229435573,-460.0,0.00021917,6]
[366393254,1750229435584,-460.0,0.00021917,6]
[366393255,1750229435594,-460.0,0.00021917,6]
[366393256,1750229435604,-1001.06,0.00021917,6]
[366393257,1750229435614,-646.08,0.00021917,6]
[366393258,1750229435624,-714.92,0.00021917,6]
[366393259,1750229435633,-460.0,0.00021917,6]
[366393260,1750229435642,-460.0,0.00021917,6]
[366393261,1750229435652,-460.0,0.00021917,6]
[366393262,1750229435662,-460.0,0.00021917,6]
[366393263,1750229435671,-433.32882922,0.00021917,6]
[366393264,1750229435681,-442.43467982,0.00021917,6]
[366393265,1750229435690,-460.0,0.00021917,6]
[366393266,1750229435700,-460.0,0.00021917,6]
[366393267,1750229435709,-460.0,0.00021917,6]
[366393268,1750229435719,-460.0,0.00021917,6]
[366393269,1750229435729,-442.15745603,0.00021917,6]
[366393270,1750229435738,-460.0,0.00021917,6]
[366393271,1750229435747,-447.65934767,0.00021917,6]
[366393272,1750229435757,-460.0,0.00021917,6]
[366393273,1750229435767,-460.0,0.00021917,6]
[366393274,1750229435776,-1397.67,0.00021917,6]
[366393275,1750229435785,-442.18629898,0.00021917,6]
[366393276,1750229435795,-433.77,0.00021917,6]
[366393277,1750229435804,-430.0,0.00021917,6]
[366393278,1750229435813,-460.0,0.00021917,6]
[366393279,1750229435823,-518.79622119,0.00021917,6]
[366393280,1750229435832,-460.0,0.00021917,6]
[366393281,1750229435842,-400.0,0.00021917,6]
[366393282,1750229435852,-460.0,0.00021917,6]
[366393283,1750229435861,-419.00329191,0.00021917,6]
[366393284,1750229435871,-416.0481107,0.00021917,6]
[366393285,1750229435880,-422.1121022,0.00021917,6]
[366393286,1750229435892,-460.0,0.00021917,6]
[366393287,1750229435903,-460.0,0.00021917,6]
[366393288,1750229435913,-417.91262611,0.00021917,6]
[366393289,1750229435924,-430.0,0.00021917,6]
[366393290,1750229435935,-460.0,0.00021917,6]
[366393291,1750229435945,-460.0,0.00021917,6]
[366393292,1750229435956,-431.6,0.00021917,6]
[366393293,1750229435965,-460.0,0.00021917,2]
[366393294,1750229435975,-460.0,0.00021917,6]
[366393295,1750229435986,-460.0,0.00021917,6]
[366393296,1750229435996,-1000.0,0.00021917,6]
[366393297,1750229436005,-460.0,0.00021917,6]
[366393298,1750229436014,-460.0,0.00021917,6]
[366393299,1750229436023,-370.42290549,0.00021917,6]
[366393300,1750229436032,-460.0,0.00021917,6]
[366393301,1750229436041,-421.86746038,0.00021917,6]